[Event "GER-ch Youth U12M 2018"]
[Site "Willingen"]
[Date "2018.05.23"]
[Round "6"]
[White "Klugstedt, Vincent"]
[Black "Werner, Denis"]
[Result "0-1"]
[ECO "D10"]
[WhiteElo "1689"]
[BlackElo "1706"]
[Annotator "NA RC"]
[PlyCount "116"]
[EventDate "2018.05.19"]
[EventType "swiss"]
[EventCountry "GER"]
[SourceTitle "playchess.com"]
[Source "ChessBase"]
[SourceQuality "1"]
[TimeControl "40/4500+30:900+30"]

1. d4 {[%emt 0:00:00]} d5 {[%emt 0:00:11]} 2. c4 {[%emt 0:00:00]} c6 {[%emt 0:00:26]} 3. Nc3 {[%emt 0:00:56]} Nf6 {[%emt 0:00:42]} 4. cxd5 {[%emt 0:01:25]} cxd5 {[%emt 0:00:57]} 5. Bf4 {[%emt 0:01:08]} a6 {[%emt 0:01:13]} 6. Nf3 {[%emt 0:01:22]} Nc6 {[%emt 0:01:36]} 7. e3 {[%emt 0:01:03]} Bg4 {[%emt 0:01:32]} 8. Bd3 {[%emt 0:03:10]} e6 {[%emt 0:04:28]} 9. O-O {[%emt 0:01:05]} Be7 {[%emt 0:02:05]} 10. a3 {[%emt 0:02:01]} O-O {[%emt 0:02:29]} 11. Rc1 {[%emt 0:02:28]} Rc8 {[%emt 0:02:27]} 12. h3 {[%emt 0:02:02]} Bxf3 {[%emt 0:02:08]} 13. Qxf3 {[%emt 0:01:21]} b5 {[%emt 0:01:51]} 14. a4 {[%emt 0:05:49]} Nb4 {[%emt 0:05:36]} 15. Be2 {[%emt 0:02:13]} bxa4 {[%emt 0:01:55]} 16. Nxa4 {[%emt 0:03:29]} Ne4 {[%emt 0:01:04]} 17. Rfd1 {[%emt 0:06:19]} Bh4 {[%emt 0:03:43]} 18. Bg3 {[%emt 0:10:30]} Bxg3 {[%emt 0:01:32]} 19. fxg3 {[%emt 0:00:11]} Qg5 {[%emt 0:02:02]} 20. Nc5 {[%emt 0:04:25]} Nxc5 {[%emt 0:02:08]} 21. dxc5 {[%emt 0:00:56]} Qe7 {[%emt 0:00:11]} 22. Qf4 {[%emt 0:02:29]} a5 {[%emt 0:00:34]} 23. Qd6 {[%emt 0:03:44]} Qb7 {[%emt 0:03:22]} 24. Qb6 {[%emt 0:06:33]} Qxb6 {[%emt 0:00:17]} 25. cxb6 {[%emt 0:00:06]} Rb8 {[%emt 0:00:04]} 26. Rc5 {[%emt 0:00:56]} Rxb6 {[%emt 0:00:13]} 27. Rdc1 {[%emt 0:01:40]} g6 {[%emt 0:01:35]} 28. Rxa5 {[%emt 0:00:36]} Nc6 {[%emt 0:00:39]} 29. Rac5 {[%emt 0:01:21]} Rxb2 {[%emt 0:00:49]} 30. Kf1 {[%emt 0:05:17]} Ne7 {[%emt 0:00:47]} 31. g4 {[%emt 0:00:45]} Rfb8 {[%emt 0:00:53]} 32. Kf2 {[%emt 0:01:31]} Ra2 {[%emt 0:01:42]} 33. Kf1 {[%emt 0:01:57]} Rb3 {[%emt 0:01:38]} 34. R5c3 {[%emt 0:01:35]} Rxc3 {[%emt 0:02:51]} 35. Rxc3 {[%emt 0:00:05]} Ra8 {[%emt 0:00:02]} 36. Rc7 {[%emt 0:00:23]} Nc8 {[%emt 0:00:10]} 37. Rc6 {[%emt 0:01:37]} Kf8 {[%emt 0:00:47]} 38. Bb5 {[%emt 0:02:48]} Ra1+ {[%emt 0:00:38]} 39. Kf2 {[%emt 0:00:09]} Na7 {[%emt 0:00:10]} 40. Ra6 {[%emt 0:00:23]} Rxa6 {[%emt 0:15:19]} 41. Bxa6 {[%emt 0:15:04]} Nc6 {[%emt 0:00:30]} 42. g5 {[%emt 0:00:30]} Ke7 {[%emt 0:00:08]} 43. Bb5 {[%emt 0:00:54]} Kd6 {[%emt 0:00:31]} 44. Kg3 {[%emt 0:01:06]} Kc5 {[%emt 0:00:25]} 45. Ba4 {[%emt 0:00:44]} e5 {[%emt 0:01:33]} 46. Kf3 {[%emt 0:02:31]} Nd8 {[%emt 0:00:52]} 47. Be8 {[%emt 0:01:00]} Kc4 {[%emt 0:00:38]} 48. Ke2 {[%emt 0:01:52]} Kc3 {[%emt 0:01:11]} 49. h4 {[%emt 0:01:59]} d4 {[%emt 0:00:53]} 50. Bb5 {[%emt 0:00:00]} Nb7 {[%emt 0:00:00]} 51. Bc6 {[%emt 0:00:00]} Nd6 {[%emt 0:00:00]} 52. exd4 {[%emt 0:00:00]} exd4 {[%emt 0:00:00]} 53. Bd5 {[%emt 0:00:00]} d3+ {[%emt 0:00:00]} 54. Kd1 {[%emt 0:00:00]} Nf5 {[%emt 0:00:00]} 55. Bf3 {[%emt 0:00:00]} d2 {[%emt 0:00:00]} 56. Ke2 {[%emt 0:00:00]} Nd4+ {[%emt 0:00:00]} 57. Kd1 {[%emt 0:00:00]} Nxf3 {[%emt 0:00:00]} 58. gxf3 {[%emt 0:00:00]} Kd3 {[%emt 0:00:00]} 0-1

[Event "GER-ch Youth U12M 2018"]
[Site "Willingen"]
[Date "2018.05.23"]
[Round "6"]
[White "Chassard, Cedric"]
[Black "Bakiev, Diyor"]
[Result "*"]
[ECO "C54"]
[WhiteElo "1590"]
[BlackElo "1752"]
[Annotator "NA RC"]
[PlyCount "141"]
[EventDate "2018.05.19"]
[EventType "swiss"]
[EventCountry "GER"]
[SourceTitle "playchess.com"]
[Source "ChessBase"]
[SourceQuality "1"]
[TimeControl "40/4500+30:900+30"]

1. e4 {[%emt 0:00:00]} e5 {[%emt 0:00:07]} 2. Nf3 {[%emt 0:00:00]} Nc6 {[%emt 0:00:08]} 3. Bc4 {[%emt 0:00:00]} Bc5 {[%emt 0:00:11]} 4. c3 {[%emt 0:00:00]} Nf6 {[%emt 0:00:10]} 5. d4 {[%emt 0:00:00]} exd4 {[%emt 0:00:09]} 6. cxd4 {[%emt 0:00:00]} Bb4+ {[%emt 0:00:08]} 7. Nbd2 {[%emt 0:00:00]} d5 {[%emt 0:03:31]} 8. exd5 {[%emt 0:00:01]} Nxd5 {[%emt 0:00:06]} 9. O-O {[%emt 0:01:01]} O-O {[%emt 0:00:24]} 10. a3 {[%emt 0:02:10]} Be7 {[%emt 0:04:24]} 11. h3 {[%emt 0:04:19]} Bf5 {[%emt 0:04:42]} 12. Nb3 {[%emt 0:03:22]} Re8 {[%emt 0:06:54]} 13. Re1 {[%emt 0:01:34]} a6 {[%emt 0:02:11]} 14. Nc5 {[%emt 0:05:07]} Na5 {[%emt 0:08:12]} 15. Bxd5 {[%emt 0:00:52]} Qxd5 {[%emt 0:00:21]} 16. Re5 {[%emt 0:00:16]} Qc4 {[%emt 0:06:27]} 17. Rxf5 {[%emt 0:01:16]} Rad8 {[%emt 0:01:24]} 18. b3 {[%emt 0:02:53]} Qb5 {[%emt 0:02:22]} 19. Qc2 {[%emt 0:01:22]} g6 {[%emt 0:06:22]} 20. Re5 {[%emt 0:01:20]} Nc6 {[%emt 0:03:13]} 21. Re4 {[%emt 0:05:22]} f5 {[%emt 0:06:06]} 22. Re1 {[%emt 0:01:35]} Bxc5 {[%emt 0:03:40]} 23. Rxe8+ {[%emt 0:00:23]} Rxe8 {[%emt 0:00:09]} 24. dxc5 {[%emt 0:00:22]} Re2 {[%emt 0:02:09]} 25. Qc4+ {[%emt 0:00:57]} Qxc4 {[%emt 0:00:05]} 26. bxc4 {[%emt 0:00:04]} Rc2 {[%emt 0:00:22]} 27. Be3 {[%emt 0:00:21]} Na5 {[%emt 0:03:05]} 28. Rd1 {[%emt 0:00:59]} Nxc4 {[%emt 0:03:04]} 29. Rd8+ {[%emt 0:00:41]} Kg7 {[%emt 0:00:50]} 30. Bd4+ {[%emt 0:00:13]} Kh6 {[%emt 0:01:02]} 31. Rd7 {[%emt 0:04:30]} Ra2 {[%emt 0:04:02]} 32. Bg7+ {[%emt 0:00:27]} Kh5 {[%emt 0:00:05]} 33. Bf8 {[%emt 0:00:58]} g5 {[%emt 0:01:10]} 34. Rg7 {[%emt 0:00:33]} h6 {[%emt 0:00:38]} 35. Rxc7 {[%emt 0:01:32]} Nd2 {[%emt 0:05:08]} 36. Nxd2 {[%emt 0:00:17]} Rxd2 {[%emt 0:00:05]} 37. Rxb7 {[%emt 0:00:23]} Rc2 {[%emt 0:01:12]} 38. Rb6 {[%emt 0:00:11]} g4 {[%emt 0:00:27]} 39. Rxh6+ {[%emt 0:00:17]} Kg5 {[%emt 0:00:05]} 40. h4+ {[%emt 0:00:30]} Kf4 {[%emt 0:15:30]} 41. Re6 {[%emt 0:15:30]} g3 {[%emt 0:00:30]} 42. Bd6+ {[%emt 0:00:30]} Kg4 {[%emt 0:00:30]} 43. Bxg3 {[%emt 0:00:30]} Rxc5 {[%emt 0:00:30]} 44. Rg6+ {[%emt 0:00:30]} Kh5 {[%emt 0:00:30]} 45. Rxa6 {[%emt 0:00:30]} Rc4 {[%emt 0:00:30]} 46. Rf6 {[%emt 0:00:30]} Rc5 {[%emt 0:00:30]} 47. a4 {[%emt 0:00:30]} Ra5 {[%emt 0:00:30]} 48. Kf1 {[%emt 0:00:30]} Kg4 {[%emt 0:00:30]} 49. Rg6+ {[%emt 0:00:30]} Kh5 {[%emt 0:00:30]} 50. Rg5+ {[%emt 0:00:30]} Kh6 {[%emt 0:00:30]} 51. Ke2 {[%emt 0:00:00]} Rxa4 {[%emt 0:03:18]} 52. Rxf5 {[%emt 0:00:00]} Ra2+ {[%emt 0:00:10]} 53. Kf3 {[%emt 0:00:00]} Kg6 {[%emt 0:00:17]} 54. Rg5+ {[%emt 0:00:00]} Kf6 {[%emt 0:00:11]} 55. Be5+ {[%emt 0:00:00]} Ke6 {[%emt 0:00:14]} 56. h5 {[%emt 0:00:00]} Ra3+ {[%emt 0:00:09]} 57. Kg4 {[%emt 0:00:00]} Ra4+ {[%emt 0:00:13]} 58. f4 {[%emt 0:00:02]} Ra2 {[%emt 0:00:10]} 59. g3 {[%emt 0:00:04]} Ra7 {[%emt 0:00:23]} 60. h6 {[%emt 0:00:06]} Rh7 {[%emt 0:00:23]} 61. Kh5 {[%emt 0:00:14]} Rf7 {[%emt 0:01:19]} 62. Rg6+ {[%emt 0:00:20]} Kd5 {[%emt 0:00:42]} 63. Bg7 {[%emt 0:00:11]} Rc7 {[%emt 0:00:23]} 64. h7 {[%emt 0:00:09]} Rc1 {[%emt 0:00:04]} 65. h8=Q {[%emt 0:00:14]} Rh1+ {[%emt 0:00:22]} 66. Kg5 {[%emt 0:00:05]} Rg1 {[%emt 0:00:19]} 67. Qd8+ {[%emt 0:00:06]} Ke4 {[%emt 0:00:06]} 68. Re6+ {[%emt 0:00:07]} Kf3 {[%emt 0:00:04]} 69. Qd3+ {[%emt 0:00:04]} Kg2 {[%emt 0:00:05]} 70. Qe2+ {[%emt 0:00:04]} Kh1 {[%emt 0:00:26]} 71. Rh6# {[%emt 0:00:04]} *

[Event "GER-ch Youth U12M 2018"]
[Site "Willingen"]
[Date "2018.05.23"]
[Round "7"]
[White "Bui, Bao Anh Le"]
[Black "Garner, Isaac"]
[Result "1/2-1/2"]
[ECO "B40"]
[WhiteElo "1974"]
[BlackElo "1784"]
[Annotator "NA RC"]
[PlyCount "47"]
[EventDate "2018.05.19"]
[EventType "swiss"]
[EventCountry "GER"]
[SourceTitle "playchess.com"]
[Source "ChessBase"]
[SourceQuality "1"]
[TimeControl "40/4500+30:900+30"]

1. e4 {[%emt 0:00:00]} c5 {[%emt 0:00:32]} 2. Nf3 {[%emt 0:00:05]} e6 {[%emt 0:00:05]} 3. c4 {[%emt 0:00:04]} Nc6 {[%emt 0:00:07]} 4. Nc3 {[%emt 0:00:06]} Nd4 {[%emt 0:00:04]} 5. Bd3 {[%emt 0:00:05] B40: Sicilian: 2...e6, Unusual lines} Ne7 {[%emt 0:03:25]} 6. Nxd4 {[%emt 0:00:20]} cxd4 {[%emt 0:00:12]} 7. Ne2 {[%emt 0:00:03]} Nc6 {[%emt 0:00:33]} 8. Bc2 {[%emt 0:00:39]} e5 $146 {[%emt 0:10:55]} ({Predecessor:} 8... Be7 9. d3 O-O 10. O-O Rb8 11. Ba4 e5 12. f4 d6 {½-½ (70) Melkumyan,H (2654)-Ladva,O (2522) chess.com INT 2018}) 9. O-O {[%emt 0:01:27]} Be7 {[%emt 0:02:24]} 10. f4 {[%emt 0:01:20]} d6 {[%emt 0:00:58]} 11. f5 {[%emt 0:01:30]} a6 {[%emt 0:03:02]} 12. d3 {[%emt 0:08:45]} O-O {[%emt 0:09:45]} 13. Ng3 {[%emt 0:01:38]} Bg5 {[%emt 0:03:59]} 14. Qg4 {[%emt 0:06:22]} Bxc1 {[%emt 0:05:52]} 15. Raxc1 {[%emt 0:01:01]} h6 {[%emt 0:00:54]} 16. h4 {[%emt 0:05:57]} Kh8 {[%emt 0:07:52]} 17. Qh5 {[%emt 0:05:43]} Ne7 {[%emt 0:09:11]} (17... f6 $11 {remains equal.}) 18. Nh1 {[%emt 0:30:05]} Ng8 {[%emt 0:06:04]} 19. Nf2 {[%emt 0:00:54]} Nf6 {[%emt 0:01:01]} 20. Qf3 {[%emt 0:00:10]} h5 {[%emt 0:03:29]} 21. Kh1 {[%emt 0:05:57]} g6 {[%emt 0:03:33]} 22. g4 {[%emt 0:03:01]} hxg4 {[%emt 0:03:35]} 23. Nxg4 {[%emt 0:00:04] [#]} Nh5 $1 {[%emt 0:02:06]} 24. Qf2 $19 {[%emt 0:10:25]} (24. Rf2 {was called for.} Nf4 25. fxg6) 1/2-1/2

[Event "GER-ch Youth U12M 2018"]
[Site "Willingen"]
[Date "2018.05.23"]
[Round "7"]
[White "Foerster-Yialamas, Lucas"]
[Black "Metzdorf, Matteo"]
[Result "0-1"]
[ECO "C11"]
[WhiteElo "1924"]
[BlackElo "1832"]
[Annotator "NA RC"]
[PlyCount "104"]
[EventDate "2018.05.19"]
[EventType "swiss"]
[EventCountry "GER"]
[SourceTitle "playchess.com"]
[Source "ChessBase"]
[SourceQuality "1"]
[TimeControl "40/4500+30:900+30"]

1. e4 {[%emt 0:00:00]} e6 {[%emt 0:00:08]} 2. d4 {[%emt 0:00:00]} d5 {[%emt 0:00:04]} 3. Nc3 {[%emt 0:00:00]} Nf6 {[%emt 0:00:08]} 4. e5 {[%emt 0:00:05]} Nfd7 {[%emt 0:00:05]} 5. f4 {[%emt 0:00:26]} c5 {[%emt 0:00:06]} 6. Nf3 {[%emt 0:00:34]} Nc6 {[%emt 0:00:04]} 7. Be3 {[%emt 0:00:28] LiveBook: 6312 Games} a6 {[%emt 0:01:47]} 8. Qd2 {[%emt 0:00:33]} b5 {[%emt 0:00:04]} 9. dxc5 {[%emt 0:00:31]} Bxc5 {[%emt 0:00:14]} 10. O-O-O {[%emt 0:00:50] C11: French: Classical System: 4 e5 and 4 Bg5 dxe4} (10. Ne2 O-O 11. Ned4 Qb6 12. c3 b4 13. Bd3 a5 14. O-O Ba6 15. Kh1 Bxd3 16. Qxd3 Qa6 17. Qc2 bxc3 18. bxc3 {½-½ (31) Dominguez Perez,L (2739)-So,W (2788) Saint Louis 2017}) 10... Qb6 {[%emt 0:00:57]} 11. Nd4 {[%emt 0:01:23]} f6 {[%emt 0:36:01]} 12. exf6 {[%emt 0:08:26]} Nxf6 {[%emt 0:00:46]} 13. g3 $146 {[%emt 0:08:48]} ({Predecessor:} 13. Be2 O-O 14. Bf3 Na5 15. b3 Rb8 16. Rde1 Re8 17. g4 Ne4 18. Bxe4 dxe4 {0-1 (28) Pomaro,A (2306)-Javina,D (2376) Grosseto 2010}) 13... O-O {[%emt 0:07:26]} 14. Bh3 {[%emt 0:03:05]} e5 {[%emt 0:12:29]} 15. fxe5 {[%emt 0:01:19]} Nxe5 {[%emt 0:03:57]} 16. Bxc8 {[%emt 0:00:27]} Raxc8 {[%emt 0:01:04]} 17. Nf5 $1 {[%emt 0:02:10]} Nc4 {[%emt 0:05:38]} 18. Nxd5 $2 {[%emt 0:05:04]} (18. Bxc5 $11 {and White has nothing to worry.} Qxc5 19. Qd4) 18... Qe6 {[%emt 0:04:01]} 19. Bxc5 $2 {[%emt 0:08:18]} (19. Qd3 {might work better.} Nxd5 20. Qxd5 Qxd5 21. Rxd5 Bxe3+ 22. Nxe3 Nxe3 23. Rd2) 19... Nxd2 {[%emt 0:03:40]} 20. Nde7+ {[%emt 0:17:27]} Kh8 {[%emt 0:00:34]} 21. Nxc8 {[%emt 0:01:36]} Rxc8 {[%emt 0:00:49]} 22. Rxd2 {[%emt 0:05:31]} Qxf5 {[%emt 0:00:31]} 23. Bb6 {[%emt 0:03:57]} Qe6 {[%emt 0:01:34]} 24. Bd4 {[%emt 0:00:44]} Qxa2 {[%emt 0:01:02]} 25. b3 {[%emt 0:00:07]} Qa3+ {[%emt 0:01:18]} 26. Bb2 {[%emt 0:00:07]} Qc5 {[%emt 0:00:47]} 27. Rhd1 {[%emt 0:00:14]} h6 {[%emt 0:00:59]} 28. Bd4 {[%emt 0:01:02]} Qf5 {[%emt 0:00:30]} 29. Rf2 {[%emt 0:00:32]} Qe6 {[%emt 0:00:50]} 30. h4 {[%emt 0:01:12]} Ng4 {[%emt 0:01:40]} 31. Rfd2 {[%emt 0:02:32]} Qc6 {[%emt 0:00:45]} 32. Bb2 {[%emt 0:00:37]} Ne3 {[%emt 0:00:54]} 33. Re1 {[%emt 0:00:42]} Nxc2 {[%emt 0:00:30]} 34. Re7 {[%emt 0:01:28]} Qh1+ {[%emt 0:00:28]} 35. Rd1 {[%emt 0:00:28]} Ne3+ {[%emt 0:00:16]} 36. Kb1 {[%emt 0:00:32]} Qxd1+ {[%emt 0:00:05]} 37. Ka2 {[%emt 0:00:10]} Nf5 {[%emt 0:00:50]} 38. Rf7 {[%emt 0:00:15]} Qd5 {[%emt 0:00:29]} 39. Ra7 {[%emt 0:00:26]} Rc2 {[%emt 0:00:46]} 40. Rxa6 {[%emt 0:00:42]} Qd4 {[%emt 0:15:16]} 41. Ra8+ {[%emt 0:15:23]} Kh7 {[%emt 0:00:04]} 42. Ka3 {[%emt 0:00:12]} Qxb2+ {[%emt 0:00:13]} 43. Kb4 {[%emt 0:00:05]} Rc4+ {[%emt 0:00:13]} 44. Ka5 {[%emt 0:00:09]} Qa3+ {[%emt 0:00:15]} 45. Kb6 {[%emt 0:00:05]} Qxa8 {[%emt 0:00:14]} 46. bxc4 {[%emt 0:00:05]} bxc4 {[%emt 0:00:21]} 47. g4 {[%emt 0:00:06]} Qd5 {[%emt 0:00:14]} 48. g5 {[%emt 0:00:30]} c3 {[%emt 0:00:05]} 49. h5 {[%emt 0:00:04]} c2 {[%emt 0:00:06]} 50. g6+ {[%emt 0:00:04]} Kg8 {[%emt 0:00:03]} 51. Kc7 {[%emt 0:00:14]} c1=Q+ {[%emt 0:00:18]} 52. Kb8 {[%emt 0:00:11]} Qd7 {[%emt 0:00:11]} 0-1

[Event "GER-ch Youth U12M 2018"]
[Site "Willingen"]
[Date "2018.05.23"]
[Round "7"]
[White "Hommer, Jeremy"]
[Black "Laux, Dominik"]
[Result "1/2-1/2"]
[ECO "B06"]
[WhiteElo "1897"]
[BlackElo "1889"]
[Annotator "NA RC"]
[PlyCount "104"]
[EventDate "2018.05.19"]
[EventType "swiss"]
[EventCountry "GER"]
[SourceTitle "playchess.com"]
[Source "ChessBase"]
[SourceQuality "1"]
[TimeControl "40/4500+30:900+30"]

1. e4 {[%emt 0:00:00]} g6 {[%emt 0:00:16]} 2. d4 {[%emt 0:00:00]} Bg7 {[%emt 0:00:08]} 3. Nc3 {[%emt 0:00:00]} c6 {[%emt 0:00:12]} 4. Be3 {[%emt 0:00:00]} d6 {[%emt 0:02:43]} 5. Qd2 {[%emt 0:00:05]} Nf6 {[%emt 0:00:39]} 6. f3 {[%emt 0:00:06]} Nbd7 {[%emt 0:00:53]} 7. O-O-O {[%emt 0:00:27]} O-O {[%emt 0:04:17]} 8. g4 {[%emt 0:02:49]} b5 {[%emt 0:00:58]} 9. Kb1 {[%emt 0:00:18] B07: Pirc Defence: Miscellaneous Systems} b4 {[%emt 0:03:15]} (9... Nb6 10. g5 Nh5 11. b3 a5 12. Nce2 f5 13. gxf6 Nxf6 14. Ng3 a4 15. h4 axb3 16. cxb3 {½-½ (37) Barria Zuniga,D (2427)-Campora,D (2535) Seville 2008}) 10. Nce2 {[%emt 0:00:07]} a5 {[%emt 0:02:19]} 11. Nc1 {[%emt 0:05:31]} Bb7 $146 {[%emt 0:04:14]} ({Predecessor:} 11... Nb6 12. Bh6 Ba6 13. Bxg7 Kxg7 14. Bxa6 Rxa6 15. h4 Qb8 16. b3 {1-0 (43) Gelfenboim,J-Baur,F Germany 1997}) 12. Bh6 {[%emt 0:05:46]} c5 {[%emt 0:04:27]} 13. Bxg7 {[%emt 0:01:44]} Kxg7 {[%emt 0:01:11]} 14. dxc5 {[%emt 0:04:02]} Nxc5 {[%emt 0:04:43]} 15. Qe3 {[%emt 0:09:08]} Qc7 {[%emt 0:04:50]} 16. h4 {[%emt 0:21:58]} Ncxe4 {[%emt 0:10:01]} 17. fxe4 {[%emt 0:06:17]} Bxe4 {[%emt 0:00:25]} 18. Rh2 {[%emt 0:00:51]} Nxg4 {[%emt 0:02:28]} 19. Qxe4 {[%emt 0:00:46]} Nxh2 {[%emt 0:00:11]} 20. Bh3 {[%emt 0:01:53]} f5 {[%emt 0:01:27]} 21. Qg2 {[%emt 0:02:22]} Ng4 {[%emt 0:00:40]} 22. Bxg4 {[%emt 0:00:22]} fxg4 {[%emt 0:00:10]} 23. Qxg4 {[%emt 0:00:22]} Rac8 {[%emt 0:00:55]} 24. Qe2 {[%emt 0:04:09]} Rf7 {[%emt 0:06:30]} 25. Nh3 {[%emt 0:02:55]} Qc4 {[%emt 0:04:01]} 26. h5 $2 {[%emt 0:03:20]} (26. Qg2 $17) 26... Qxe2 {[%emt 0:02:57]} 27. Nxe2 {[%emt 0:00:01]} Rcf8 {[%emt 0:04:48]} 28. hxg6 {[%emt 0:02:12]} Rf1 {[%emt 0:02:03]} 29. Kc1 {[%emt 0:00:01]} hxg6 {[%emt 0:02:04]} 30. Rxf1 {[%emt 0:01:19]} Rxf1+ {[%emt 0:00:09]} 31. Kd2 {[%emt 0:00:01]} e5 {[%emt 0:01:01]} 32. Ng5 {[%emt 0:00:25]} Kf6 {[%emt 0:04:29]} 33. Ne4+ {[%emt 0:00:12]} Ke6 {[%emt 0:00:23]} 34. c4 {[%emt 0:01:44]} Rf8 {[%emt 0:03:34]} (34... d5 $142 35. cxd5+ Kxd5) 35. b3 {[%emt 0:04:32]} Rg8 {[%emt 0:01:53]} 36. Ng5+ {[%emt 0:01:53]} Kf6 {[%emt 0:01:48]} 37. Ne4+ {[%emt 0:00:03]} Ke7 {[%emt 0:00:29]} 38. Ng5 {[%emt 0:00:20]} Rh8 {[%emt 0:01:41]} 39. Ne4 {[%emt 0:00:57]} Rh5 {[%emt 0:01:53]} 40. Ke3 {[%emt 0:01:51]} Rh3+ {[%emt 0:18:42]} 41. Kd2 {[%emt 0:15:53]} Rh5 {[%emt 0:00:00]} ({Black should play} 41... Kd7 $17 42. Nf6+ Kc6) 42. Ke3 {[%emt 0:00:00]} Ke6 {[%emt 0:00:00]} 43. N2g3 {[%emt 0:00:00]} Rh2 {[%emt 0:00:00]} 44. Ne2 {[%emt 0:00:00]} Rh8 {[%emt 0:00:00]} 45. N2g3 {[%emt 0:00:00]} Rf8 {[%emt 0:00:00]} 46. Ng5+ {[%emt 0:00:00]} Kd7 {[%emt 0:00:00]} 47. N5e4 {[%emt 0:00:00]} Kc6 {[%emt 0:00:00]} 48. Ng5 {[%emt 0:00:00]} a4 {[%emt 0:00:00]} 49. N5e4 {[%emt 0:00:00]} axb3 $11 {[%emt 0:00:23]} 50. axb3 {[%emt 0:00:00]} d5 {[%emt 0:01:41]} 51. cxd5+ {[%emt 0:00:00]} Kxd5 {[%emt 0:00:07]} 52. Nh1 {[%emt 0:01:37]} Rh8 {[%emt 0:01:15] Kd4+} 1/2-1/2

[Event "GER-ch Youth U12M 2018"]
[Site "Willingen"]
[Date "2018.05.23"]
[Round "7"]
[White "Farokhi, Keyvan"]
[Black "Chassard, Cedric"]
[Result "1/2-1/2"]
[ECO "C11"]
[WhiteElo "1844"]
[BlackElo "1590"]
[Annotator "NA RC"]
[PlyCount "124"]
[EventDate "2018.05.19"]
[EventType "swiss"]
[EventCountry "GER"]
[SourceTitle "playchess.com"]
[Source "ChessBase"]
[SourceQuality "1"]
[TimeControl "40/4500+30:900+30"]

1. e4 {[%emt 0:00:00]} e6 {[%emt 0:00:01]} 2. d4 {[%emt 0:00:00]} d5 {[%emt 0:00:01]} 3. Nc3 {[%emt 0:00:00]} Nf6 {[%emt 0:00:05]} 4. e5 {[%emt 0:00:00]} Nfd7 {[%emt 0:00:04]} 5. f4 {[%emt 0:00:00]} c5 {[%emt 0:00:04]} 6. Nf3 {[%emt 0:00:05]} Nc6 {[%emt 0:00:05]} 7. Be3 {[%emt 0:00:06]} a6 {[%emt 0:00:04]} 8. Qd2 {[%emt 0:00:06]} b5 {[%emt 0:00:09]} 9. dxc5 {[%emt 0:00:24]} Bxc5 {[%emt 0:00:09]} 10. Bd3 {[%emt 0:00:10] C11: Französische Verteidigung} (10. Ne2 O-O 11. Ned4 Qb6 12. c3 b4 13. Bd3 a5 14. O-O Ba6 15. Kh1 Bxd3 16. Qxd3 Qa6 17. Qc2 bxc3 18. bxc3 {½-½ (31) Dominguez Perez,L (2739)-So,W (2788) Saint Louis 2017}) 10... d4 {[%emt 0:01:03]} 11. Nxd4 {[%emt 0:00:09]} Nxd4 {[%emt 0:00:05]} 12. Be4 {[%emt 0:00:20]} Nxc2+ $146 {[%emt 0:00:49]} ({Vorgänger:} 12... Qb6 13. Bxa8 Nf3+ 14. Bxf3 Bxe3 15. Qd6 Bxf4 16. Qxb6 Nxb6 17. Ne4 Ke7 {1-0 (45) Li,C (2669)-Vovk,Y (2564) Shenzhen 2011}) 13. Qxc2 {[%emt 0:00:55]} Rb8 {[%emt 0:01:32]} 14. Bxc5 {[%emt 0:03:08]} Nxc5 {[%emt 0:00:18]} 15. O-O {[%emt 0:00:16]} Nxe4 {[%emt 0:01:21]} 16. Nxe4 {[%emt 0:00:05]} Bb7 {[%emt 0:07:03]} 17. Nd6+ {[%emt 0:00:33]} Kf8 {[%emt 0:02:40]} 18. Qc5 {[%emt 0:01:16]} Kg8 {[%emt 0:02:45]} 19. Rad1 {[%emt 0:00:13]} Bd5 {[%emt 0:01:09]} 20. Rxd5 {[%emt 0:16:53]} exd5 {[%emt 0:00:18]} 21. Qxd5 {[%emt 0:00:10]} Qe7 {[%emt 0:01:48]} 22. f5 {[%emt 0:00:41]} h5 $1 {[%emt 0:01:19]} 23. e6 {[%emt 0:07:10] [#]} Rd8 $1 {[%emt 0:02:02]} 24. Qb7 {[%emt 0:11:09]} Qxb7 {[%emt 0:03:49]} 25. Nxb7 {[%emt 0:00:26]} Re8 {[%emt 0:00:52]} 26. Nd6 {[%emt 0:00:21]} Re7 {[%emt 0:00:25]} 27. exf7+ {[%emt 0:00:18]} Rxf7 {[%emt 0:02:25]} 28. Nxf7 {[%emt 0:00:13]} Kxf7 {[%emt 0:00:04]} 29. Rc1 {[%emt 0:00:52]} Rd8 {[%emt 0:00:22]} 30. Rc7+ {[%emt 0:00:32]} Kf6 {[%emt 0:00:57]} 31. Rc6+ {[%emt 0:00:20]} Kxf5 {[%emt 0:00:08]} 32. Rxa6 {[%emt 0:00:07]} Rd1+ {[%emt 0:00:09]} 33. Kf2 {[%emt 0:00:04]} Rd2+ {[%emt 0:00:04]} 34. Kg3 {[%emt 0:00:06]} Rxb2 {[%emt 0:00:08]} 35. Ra5 {[%emt 0:00:07]} g5 {[%emt 0:00:55]} 36. h3 {[%emt 0:12:01]} Kf6 {[%emt 0:02:20]} 37. Ra3 {[%emt 0:04:03]} b4 {[%emt 0:02:50]} 38. Ra6+ {[%emt 0:00:43]} Kf5 {[%emt 0:00:51]} 39. Ra5+ {[%emt 0:01:02]} Kf6 {[%emt 0:00:10]} 40. Kh2 {[%emt 0:02:28]} b3 {[%emt 0:18:22]} 41. axb3 {[%emt 0:15:04]} Rxb3 {[%emt 0:00:06]} 42. h4 {[%emt 0:00:05]} gxh4 {[%emt 0:00:43]} 43. Rxh5 {[%emt 0:00:09]} Kg6 {[%emt 0:00:22]} 44. Rxh4 {[%emt 0:00:07]} Kg7 {[%emt 0:00:08]} 45. Ra4 {[%emt 0:00:08]} Rb8 {[%emt 0:00:10]} 46. g4 {[%emt 0:00:10]} Kg8 {[%emt 0:00:07]} 47. Kg3 {[%emt 0:00:06]} Rc8 {[%emt 0:00:14]} 48. Kf4 {[%emt 0:00:07]} Rb8 {[%emt 0:00:08]} 49. g5 {[%emt 0:00:12]} Rb5 {[%emt 0:01:15]} 50. Ra8+ {[%emt 0:00:06]} Kg7 {[%emt 0:00:04]} 51. Kg4 {[%emt 0:00:07]} Rb6 $11 {[%emt 0:00:31]} 52. Kh5 {[%emt 0:00:11]} Rc6 {[%emt 0:00:25]} 53. Ra7+ {[%emt 0:00:31]} Kg8 {[%emt 0:00:10]} 54. g6 {[%emt 0:00:50]} Rc1 {[%emt 0:00:21]} 55. Ra6 {[%emt 0:01:24]} Rh1+ {[%emt 0:00:09]} 56. Kg5 {[%emt 0:00:09]} Rg1+ {[%emt 0:00:16]} 57. Kf6 {[%emt 0:00:08]} Rf1+ {[%emt 0:00:04]} 58. Ke7 {[%emt 0:00:16]} Re1+ {[%emt 0:00:12]} 59. Re6 {[%emt 0:00:15]} Rxe6+ {[%emt 0:00:19]} 60. Kxe6 {[%emt 0:00:05]} Kg7 {[%emt 0:00:11]} 61. Kf5 {[%emt 0:00:07]} Kg8 {[%emt 0:00:09]} 62. Kf6 {[%emt 0:00:06]} Kf8 {[%emt 0:00:02]} 1/2-1/2